[Event "Championnat d'Europe Rapide"]
[Date "2024.12.08"]
[White "Bulmaga, Irina"]
[Black "Zygouris, Hristos"]
[WhiteElo "2386"]
[BlackElo "2163"]
[Round "9.49"]
[Result "1-0"]
[TimeControl "900+10"]

1. e4 {[%emt 00:00:02] [%clk 00:15:17]} c5 {[%emt 00:00:04] [%clk 00:15:20]} 2.
c3 {[%clk 00:15:25]} d5 {[%emt 00:00:04] [%clk 00:15:25]} 3. exd5 {[%emt
00:00:02] [%clk 00:15:33]} Qxd5 {[%emt 00:00:03] [%clk 00:15:33]} 4. Nf3 {[%emt
00:00:03] [%clk 00:15:39]} Nc6 {[%emt 00:00:01] [%clk 00:15:42]} 5. d4 {[%emt
00:00:05] [%clk 00:15:44]} Bf5 {[%emt 00:00:04] [%clk 00:15:48]} 6. Be3 {[%emt
00:00:22] [%clk 00:15:32]} e6 {[%emt 00:00:03] [%clk 00:15:55]} 7. Na3 {[%emt
00:00:26] [%clk 00:15:16]} cxd4 {[%emt 00:00:22] [%clk 00:15:43]} 8. Nb5 {[%emt
00:00:16] [%clk 00:15:10]} O-O-O {[%emt 00:00:35] [%clk 00:15:19]} 9. Nbxd4
{[%emt 00:00:29] [%clk 00:14:51]} Be4 {[%emt 00:03:04] [%clk 00:12:25]} 10. Qa4
{[%emt 00:00:56] [%clk 00:14:05]} Qa5 {[%emt 00:02:05] [%clk 00:10:29]} 11. Qxa5
{[%emt 00:00:42] [%clk 00:13:34]} Nxa5 {[%clk 00:10:38]} 12. Ne5 {[%emt
00:00:22] [%clk 00:13:21]} Bg6 {[%emt 00:01:08] [%clk 00:09:41]} 13. b4 {[%emt
00:00:11] [%clk 00:13:19]} Nc6 {[%emt 00:00:46] [%clk 00:09:06]} 14. Nexc6
{[%emt 00:00:03] [%clk 00:13:26]} bxc6 {[%emt 00:00:02] [%clk 00:09:14]} 15.
Nxc6 {[%emt 00:00:08] [%clk 00:13:28]} Rd6 {[%emt 00:00:45] [%clk 00:08:38]} 16.
Nxa7+ {[%emt 00:00:10] [%clk 00:13:28]} Kb7 {[%emt 00:00:02] [%clk 00:08:46]}
17. Nb5 {[%emt 00:00:10] [%clk 00:13:28]} Rd8 {[%emt 00:00:07] [%clk 00:08:49]}
18. Be2 {[%emt 00:00:11] [%clk 00:13:27]} Nf6 {[%emt 00:00:15] [%clk 00:08:45]}
19. O-O {[%emt 00:00:22] [%clk 00:13:14]} Nd5 {[%emt 00:00:37] [%clk 00:08:18]}
20. Bd4 {[%emt 00:01:08] [%clk 00:12:16]} f6 {[%emt 00:00:11] [%clk 00:08:18]}
21. a4 {[%emt 00:01:08] [%clk 00:11:18]} e5 {[%emt 00:01:18] [%clk 00:07:10]}
22. Be3 {[%clk 00:11:27]} Be7 {[%emt 00:01:38] [%clk 00:05:42]} 23. Bc1 {[%emt
00:01:37] [%clk 00:09:59]} Be4 {[%emt 00:01:58] [%clk 00:03:54]} 24. a5 {[%emt
00:00:26] [%clk 00:09:43]} Rc8 {[%emt 00:00:42] [%clk 00:03:23]} 25. Bd2 {[%emt
00:00:49] [%clk 00:09:04]} Rhd8 {[%emt 00:00:10] [%clk 00:03:22]} 26. Ra2 {[%emt
00:00:44] [%clk 00:08:31]} Bf8 {[%emt 00:00:50] [%clk 00:02:42]} 27. f3 {[%emt
00:00:21] [%clk 00:08:20]} Bg6 {[%emt 00:00:05] [%clk 00:02:47]} 28. a6+ {[%emt
00:00:22] [%clk 00:08:08]} Ka8 {[%clk 00:02:56]} 29. Rfa1 {[%emt 00:00:29] [%clk
00:07:48]} Nb6 {[%emt 00:00:13] [%clk 00:02:54]} 30. Be3 {[%emt 00:00:45] [%clk
00:07:13]} Nd5 {[%emt 00:00:18] [%clk 00:02:46]} 31. Bd2 {[%emt 00:01:01] [%clk
00:06:20]} Nb6 {[%emt 00:00:01] [%clk 00:02:56]} 32. Be1 {[%emt 00:00:15] [%clk
00:06:15]} Nc4 {[%emt 00:00:35] [%clk 00:02:31]} 33. Bxc4 {[%emt 00:00:26] [%clk
00:05:59]} Rxc4 {[%emt 00:00:02] [%clk 00:02:40]} 34. Na3 {[%emt 00:00:40] [%clk
00:05:29]} Rcc8 {[%emt 00:00:02] [%clk 00:02:48]} 35. c4 {[%emt 00:00:10] [%clk
00:05:29]} Rd3 {[%emt 00:00:57] [%clk 00:01:59]} 36. c5 {[%emt 00:00:19] [%clk
00:05:21]} Bf7 {[%emt 00:00:37] [%clk 00:01:33]} 37. Rd2 {[%emt 00:00:12] [%clk
00:05:18]} Rxd2 {[%emt 00:00:43] [%clk 00:01:01]} 38. Bxd2 {[%emt 00:00:02]
[%clk 00:05:25]} Rd8 {[%emt 00:00:10] [%clk 00:01:01]} 39. Be1 {[%emt 00:00:17]
[%clk 00:05:18]} Rd3 {[%emt 00:00:20] [%clk 00:00:52]} 40. c6 {[%emt 00:00:30]
[%clk 00:04:57]} Bd6 {[%emt 00:00:26] [%clk 00:00:37]} 41. Nb5 {[%emt 00:00:08]
[%clk 00:04:58]} Bc4 {[%emt 00:00:17] [%clk 00:00:30]} 42. c7 {[%emt 00:00:41]
[%clk 00:04:28]} Bxc7 {[%emt 00:00:01] [%clk 00:00:38]} 43. Nxc7+ {[%emt
00:00:03] [%clk 00:04:35]} Ka7 {[%emt 00:00:04] [%clk 00:00:44]} 44. Bf2+ {[%emt
00:00:03] [%clk 00:04:41]} 1-0

[Site "Europe Echecs"]

[Event "Championnat d'Europe Rapide"]
[Date "2024.12.08"]
[White "Hamitevici, Vladimir"]
[Black "Suljovic, Sulejman"]
[WhiteElo "2423"]
[BlackElo "2182"]
[Round "9.50"]
[Result "1-0"]
[TimeControl "900+10"]

1. Nf3 {[%emt 00:00:02] [%clk 00:15:17]} e6 {[%emt 00:01:05] [%clk 00:14:17]} 2.
e3 {[%emt 00:00:07] [%clk 00:15:19]} f5 {[%emt 00:00:06] [%clk 00:14:22]} 3. c4
{[%emt 00:00:38] [%clk 00:14:51]} Nf6 {[%emt 00:00:02] [%clk 00:14:29]} 4. b3
{[%emt 00:00:04] [%clk 00:14:56]} b6 {[%emt 00:00:02] [%clk 00:14:39]} 5. g3
{[%emt 00:00:22] [%clk 00:14:43]} Bb7 {[%emt 00:00:02] [%clk 00:14:48]} 6. Bg2
{[%emt 00:00:02] [%clk 00:14:50]} a5 {[%emt 00:00:04] [%clk 00:14:55]} 7. Nc3
{[%emt 00:00:21] [%clk 00:14:38]} Bb4 {[%emt 00:00:07] [%clk 00:14:57]} 8. Bb2
{[%emt 00:00:07] [%clk 00:14:41]} O-O {[%emt 00:00:11] [%clk 00:14:57]} 9. a3
{[%emt 00:00:34] [%clk 00:14:17]} Be7 {[%emt 00:00:16] [%clk 00:14:51]} 10. O-O
{[%emt 00:00:18] [%clk 00:14:09]} Na6 {[%emt 00:00:03] [%clk 00:14:58]} 11. Qc2
{[%emt 00:00:27] [%clk 00:13:52]} Qe8 {[%emt 00:00:18] [%clk 00:14:50]} 12. d4
{[%emt 00:00:42] [%clk 00:13:19]} Qh5 {[%emt 00:00:13] [%clk 00:14:48]} 13. d5
{[%emt 00:00:05] [%clk 00:13:24]} Nc5 {[%emt 00:00:24] [%clk 00:14:35]} 14. Nd4
{[%emt 00:00:25] [%clk 00:13:08]} Ng4 {[%emt 00:06:00] [%clk 00:08:45]} 15. h3
{[%emt 00:00:10] [%clk 00:13:07]} Ne5 {[%emt 00:00:14] [%clk 00:08:42]} 16. Rad1
{[%emt 00:00:36] [%clk 00:12:40]} Rfe8 {[%emt 00:01:18] [%clk 00:07:36]} 17.
Ncb5 {[%emt 00:01:29] [%clk 00:11:20]} Bd8 {[%emt 00:01:42] [%clk 00:06:04]} 18.
f4 {[%emt 00:01:32] [%clk 00:09:58]} Nf7 {[%emt 00:00:44] [%clk 00:05:30]} 19.
dxe6 {[%emt 00:00:16] [%clk 00:09:52]} dxe6 {[%emt 00:00:13] [%clk 00:05:28]}
20. Bxb7 {[%emt 00:00:04] [%clk 00:09:57]} Nxb7 {[%emt 00:00:03] [%clk
00:05:35]} 21. Qg2 {[%emt 00:00:02] [%clk 00:10:05]} Nc5 {[%emt 00:00:13] [%clk
00:05:32]} 22. Qxa8 {[%emt 00:00:38] [%clk 00:09:37]} Ne4 {[%clk 00:05:41]} 23.
Qc6 {[%emt 00:02:08] [%clk 00:07:39]} Rf8 {[%emt 00:01:30] [%clk 00:04:21]} 24.
Kg2 {[%emt 00:00:37] [%clk 00:07:11]} Bf6 {[%emt 00:01:39] [%clk 00:02:54]} 25.
Qxe6 {[%emt 00:00:59] [%clk 00:06:21]} g6 {[%emt 00:02:09] [%clk 00:00:56]} 26.
Rf3 {[%emt 00:01:08] [%clk 00:05:20]} c5 {[%emt 00:00:53] [%clk 00:00:15]} 27.
Nxf5 {[%emt 00:00:31] [%clk 00:04:59]} 1-0

[Site "Europe Echecs"]

[Event "Championnat d'Europe Rapide"]
[Date "2024.12.08"]
[White "Sramek, Vojtech"]
[Black "Nikolovski, Nikola"]
[WhiteElo "2259"]
[BlackElo "2407"]
[Round "9.51"]
[Result "0-1"]
[TimeControl "900+10"]

1. e4 {[%emt 00:00:02] [%clk 00:15:18]} d5 {[%emt 00:00:04]} 2. exd5 {[%clk
00:15:26]} Qxd5 {[%clk 00:15:28]} 3. Nc3 {[%emt 00:00:01] [%clk 00:15:34]} Qa5
{[%emt 00:00:02] [%clk 00:15:37]} 4. d4 {[%emt 00:00:02] [%clk 00:15:41]} Nf6
{[%emt 00:00:02] [%clk 00:15:45]} 5. Bc4 {[%emt 00:00:02] [%clk 00:15:50]} Bg4
{[%emt 00:01:08] [%clk 00:14:47]} 6. f3 {[%emt 00:01:11] [%clk 00:14:49]} Bf5
{[%emt 00:00:42] [%clk 00:14:14]} 7. Bd2 {[%emt 00:00:02] [%clk 00:14:57]} c6
{[%emt 00:01:11] [%clk 00:13:14]} 8. Nd5 {[%emt 00:00:25] [%clk 00:14:42]} Qd8
{[%emt 00:00:07] [%clk 00:13:16]} 9. Nxf6+ {[%emt 00:00:03] [%clk 00:14:50]}
gxf6 {[%emt 00:00:16] [%clk 00:13:10]} 10. Ne2 {[%emt 00:00:24] [%clk 00:14:35]}
e6 {[%emt 00:00:30] [%clk 00:12:51]} 11. O-O {[%emt 00:00:34] [%clk 00:14:10]}
h5 {[%emt 00:00:19] [%clk 00:12:42]} 12. c3 {[%emt 00:00:26] [%clk 00:13:55]} h4
{[%emt 00:00:21] [%clk 00:12:30]} 13. Re1 {[%emt 00:01:15] [%clk 00:12:51]} Nd7
{[%emt 00:01:22] [%clk 00:11:18]} 14. a4 {[%emt 00:02:19] [%clk 00:10:42]} Nb6
{[%emt 00:01:56] [%clk 00:09:32]} 15. Ba2 {[%emt 00:00:49] [%clk 00:10:02]} Nd5
{[%emt 00:00:46] [%clk 00:08:56]} 16. Nf4 {[%emt 00:01:24] [%clk 00:08:48]} Bd6
{[%emt 00:00:12] [%clk 00:08:54]} 17. Nxd5 {[%emt 00:02:00] [%clk 00:06:59]}
cxd5 {[%emt 00:00:02] [%clk 00:09:02]} 18. f4 {[%emt 00:02:15] [%clk 00:04:54]}
Kf8 {[%emt 00:02:07] [%clk 00:07:04]} 19. c4 {[%emt 00:00:29] [%clk 00:04:36]}
dxc4 {[%emt 00:01:57] [%clk 00:05:17]} 20. Bxc4 {[%emt 00:00:02] [%clk
00:04:44]} Qb6 {[%emt 00:00:05] [%clk 00:05:22]} 21. Bc3 {[%emt 00:01:24] [%clk
00:03:29]} Bxf4 {[%emt 00:00:41] [%clk 00:04:52]} 22. Qf3 {[%emt 00:00:03] [%clk
00:03:35]} Qc7 {[%emt 00:00:44] [%clk 00:04:19]} 23. Kh1 {[%emt 00:01:53] [%clk
00:01:52]} Bg3 {[%emt 00:02:56] [%clk 00:01:32]} 24. Rxe6 {[%emt 00:01:24] [%clk
00:00:39]} fxe6 {[%emt 00:00:59] [%clk 00:00:43]} 25. Bxe6 {[%emt 00:00:01]
[%clk 00:00:48]} Qf4 {[%emt 00:00:40] [%clk 00:00:13]} 26. Qxb7 {[%emt 00:00:44]
[%clk 00:00:15]} Bxe6 {[%emt 00:00:01] [%clk 00:00:21]} 27. d5 {[%emt 00:00:12]
[%clk 00:00:13]} Rb8 {[%emt 00:00:12] [%clk 00:00:19]} 28. Qxa7 {[%emt 00:00:11]
[%clk 00:00:12]} Bxd5 {[%emt 00:00:04] [%clk 00:00:25]} 29. Rd1 {[%emt 00:00:10]
[%clk 00:00:12]} Bxg2+ {[%emt 00:00:18] [%clk 00:00:17]} 30. Kxg2 {[%emt
00:00:05] [%clk 00:00:17]} h3+ {[%emt 00:00:05] [%clk 00:00:22]} 31. Kg1 {[%emt
00:00:13] [%clk 00:00:14]} Bxh2+ {[%emt 00:00:03] [%clk 00:00:29]} 32. Kh1
{[%emt 00:00:03] [%clk 00:00:21]} Qf3+ {[%emt 00:00:02] [%clk 00:00:37]} 33.
Kxh2 {[%emt 00:00:01] [%clk 00:00:29]} Qg2# {[%clk 00:00:46]} 0-1

[Site "Europe Echecs"]

[Event "Championnat d'Europe Rapide"]
[Date "2024.12.08"]
[White "Aliyev, Elnur"]
[Black "Todorovic, Goran N"]
[WhiteElo "2079"]
[BlackElo "2256"]
[Round "9.52"]
[Result "0-1"]
[TimeControl "900+10"]

1. e4 {[%emt 00:00:14] [%clk 00:15:05]} c5 {[%emt 00:00:03] [%clk 00:15:18]} 2.
Nf3 {[%emt 00:00:02] [%clk 00:15:13]} d6 {[%emt 00:00:01] [%clk 00:15:28]} 3. d4
{[%clk 00:15:22]} Nf6 {[%emt 00:00:01] [%clk 00:15:36]} 4. Bb5+ {[%emt 00:01:03]
[%clk 00:14:29]} Bd7 {[%emt 00:00:46] [%clk 00:15:00]} 5. c4 {[%emt 00:00:09]
[%clk 00:14:30]} Nxe4 {[%emt 00:00:46] [%clk 00:14:24]} 6. O-O {[%emt 00:00:04]
[%clk 00:14:36]} Bxb5 {[%emt 00:00:22] [%clk 00:14:13]} 7. cxb5 {[%emt 00:00:06]
[%clk 00:14:39]} e6 {[%emt 00:00:01] [%clk 00:14:22]} 8. Re1 {[%emt 00:00:34]
[%clk 00:14:15]} d5 {[%emt 00:00:09] [%clk 00:14:23]} 9. Nc3 {[%emt 00:00:37]
[%clk 00:13:48]} Nxc3 {[%emt 00:00:12] [%clk 00:14:22]} 10. bxc3 {[%clk
00:13:56]} c4 {[%emt 00:00:38] [%clk 00:13:54]} 11. Ng5 {[%emt 00:01:15] [%clk
00:12:51]} Be7 {[%emt 00:05:57] [%clk 00:08:07]} 12. Qh5 {[%emt 00:00:34] [%clk
00:12:26]} Bxg5 {[%emt 00:00:02] [%clk 00:08:16]} 13. Bxg5 {[%clk 00:12:35]} Qd6
{[%emt 00:00:08] [%clk 00:08:17]} 14. Re3 {[%emt 00:00:51] [%clk 00:11:54]} Nd7
{[%emt 00:01:14] [%clk 00:07:13]} 15. Rae1 {[%emt 00:00:16] [%clk 00:11:48]} Nf8
{[%emt 00:00:02] [%clk 00:07:22]} 16. f4 {[%emt 00:03:25] [%clk 00:08:33]} g6
{[%emt 00:00:27] [%clk 00:07:04]} 17. Qh6 {[%emt 00:00:09] [%clk 00:08:34]} Rg8
{[%emt 00:00:02] [%clk 00:07:13]} 18. Bf6 {[%emt 00:00:40] [%clk 00:08:04]} Kd7
{[%emt 00:00:19] [%clk 00:07:05]} 19. h3 {[%emt 00:01:43] [%clk 00:06:30]} Re8
{[%emt 00:00:12] [%clk 00:07:03]} 20. a4 {[%emt 00:00:12] [%clk 00:06:29]} Qa3
{[%emt 00:00:20] [%clk 00:06:53]} 21. Bg7 {[%emt 00:00:30] [%clk 00:06:08]} Qxa4
{[%emt 00:00:22] [%clk 00:06:41]} 22. Bxf8 {[%emt 00:01:02] [%clk 00:05:16]}
Rgxf8 {[%emt 00:00:06] [%clk 00:06:45]} 23. Qxh7 {[%emt 00:00:52] [%clk
00:04:34]} Qxb5 {[%emt 00:00:03] [%clk 00:06:53]} 24. Qg7 {[%emt 00:00:11] [%clk
00:04:32]} a5 {[%emt 00:00:18] [%clk 00:06:45]} 25. Kh2 {[%emt 00:00:25] [%clk
00:04:16]} a4 {[%emt 00:00:35] [%clk 00:06:21]} 26. f5 {[%emt 00:04:11] [%clk
00:00:15]} gxf5 {[%emt 00:00:23] [%clk 00:06:07]} 27. Rxe6 {[%clk 00:00:25]}
Rxe6 {[%emt 00:00:06] [%clk 00:06:12]} 28. Rxe6 {[%clk 00:00:34]} Kxe6 {[%emt
00:00:10] [%clk 00:06:12]} 29. Qxf8 {[%emt 00:00:01] [%clk 00:00:42]} Qc6 {[%emt
00:00:12] [%clk 00:06:11]} 30. Qa8 {[%emt 00:00:31] [%clk 00:00:20]} f4 {[%emt
00:00:41] [%clk 00:05:40]} 31. h4 {[%emt 00:00:11] [%clk 00:00:20]} Kf5 {[%emt
00:00:11] [%clk 00:05:39]} 32. Kh3 {[%emt 00:00:17] [%clk 00:00:13]} Ke4 {[%emt
00:00:07] [%clk 00:05:42]} 33. h5 {[%emt 00:00:06] [%clk 00:00:16]} f3 {[%emt
00:00:24] [%clk 00:05:27]} 34. g4 {[%emt 00:00:14] [%clk 00:00:13]} Ke3 {[%emt
00:00:04] [%clk 00:05:33]} 35. Qb8 {[%emt 00:00:09] [%clk 00:00:14]} Qf6 {[%emt
00:00:44] [%clk 00:04:59]} 36. Qe8+ {[%emt 00:00:13] [%clk 00:00:11]} Kd2 {[%emt
00:00:16] [%clk 00:04:53]} 37. Qxa4 {[%emt 00:00:10] [%clk 00:00:12]} f2 {[%emt
00:00:03] [%clk 00:04:59]} 38. Qa2+ {[%emt 00:00:04] [%clk 00:00:18]} Ke3 {[%emt
00:00:06] [%clk 00:05:03]} 39. Kg3 {[%emt 00:00:18] [%clk 00:00:11]} f1=Q {[%emt
00:00:05] [%clk 00:05:07]} 0-1

[Site "Europe Echecs"]

[Event "Championnat d'Europe Rapide"]
[Date "2024.12.08"]
[White "Gatineau, Yovann"]
[Black "Nikolaev, Georgi"]
[WhiteElo "2363"]
[BlackElo "2032"]
[Round "9.53"]
[Result "1-0"]
[TimeControl "900+10"]

1. d4 {[%clk 00:15:19]} d5 {[%emt 00:01:03] [%clk 00:14:18]} 2. Bf4 {[%emt
00:00:03] [%clk 00:15:25]} Nf6 {[%emt 00:00:13] [%clk 00:14:15]} 3. e3 {[%emt
00:00:01] [%clk 00:15:34]} e6 {[%emt 00:00:12] [%clk 00:14:14]} 4. Nf3 {[%emt
00:00:04] [%clk 00:15:40]} c5 {[%emt 00:00:13] [%clk 00:14:11]} 5. Nbd2 {[%emt
00:00:02] [%clk 00:15:47]} Bd6 {[%emt 00:00:04] [%clk 00:14:17]} 6. Bg3 {[%emt
00:00:03] [%clk 00:15:55]} O-O {[%emt 00:00:10] [%clk 00:14:17]} 7. c3 {[%emt
00:00:04] [%clk 00:16:01]} Nc6 {[%emt 00:00:07] [%clk 00:14:20]} 8. Bd3 {[%emt
00:00:03] [%clk 00:16:07]} b6 {[%emt 00:00:06] [%clk 00:14:25]} 9. e4 {[%emt
00:00:02] [%clk 00:16:15]} Be7 {[%emt 00:00:21] [%clk 00:14:13]} 10. e5 {[%emt
00:00:07] [%clk 00:16:19]} Nh5 {[%emt 00:00:03] [%clk 00:14:20]} 11. Ng5 {[%emt
00:00:02] [%clk 00:16:27]} Bxg5 {[%emt 00:00:44] [%clk 00:13:46]} 12. Qxh5
{[%emt 00:00:02] [%clk 00:16:34]} g6 {[%emt 00:00:31] [%clk 00:13:25]} 13. Qe2
{[%emt 00:00:02] [%clk 00:16:42]} cxd4 {[%emt 00:00:11] [%clk 00:13:25]} 14. h4
{[%emt 00:00:04] [%clk 00:16:47]} Bh6 {[%emt 00:00:25] [%clk 00:13:10]} 15. h5
{[%emt 00:00:32] [%clk 00:16:25]} dxc3 {[%emt 00:02:44] [%clk 00:10:37]} 16.
bxc3 {[%emt 00:00:06] [%clk 00:16:29]} Bg7 {[%emt 00:01:55] [%clk 00:08:52]} 17.
Kf1 {[%emt 00:00:33] [%clk 00:16:06]} f6 {[%emt 00:04:16] [%clk 00:04:46]} 18.
hxg6 {[%emt 00:01:40] [%clk 00:14:35]} fxe5 {[%emt 00:00:09] [%clk 00:04:47]}
19. Rxh7 {[%emt 00:00:17] [%clk 00:14:29]} e4 {[%emt 00:00:52]} 20. Qh5 {[%clk
00:14:27]} Qd7 {[%emt 00:01:44] [%clk 00:02:42]} 21. Bb5 {[%emt 00:03:18] [%clk
00:11:19]} Rf5 {[%emt 00:02:08] [%clk 00:00:44]} 22. Bxc6 {[%emt 00:06:38] [%clk
00:04:52]} Ba6+ {[%clk 00:00:53]} 23. Kg1 {[%emt 00:00:14] [%clk 00:04:49]} Qxc6
{[%clk 00:01:02]} 24. Rxg7+ {[%emt 00:00:56] [%clk 00:04:03]} Kxg7 {[%emt
00:00:01] [%clk 00:01:11]} 25. Qh7+ {[%clk 00:04:11]} Kf6 {[%emt 00:00:07] [%clk
00:01:14]} 26. Bh4+ {[%emt 00:00:42] [%clk 00:03:40]} Ke5 {[%emt 00:00:24] [%clk
00:01:01]} 27. Qg7+ {[%emt 00:00:05] [%clk 00:03:44]} Kf4 {[%emt 00:00:58] [%clk
00:00:13]} 28. Qh6+ {[%emt 00:00:08] [%clk 00:03:47]} Ke5 {[%emt 00:00:12] [%clk
00:00:11]} 29. Qg7+ {[%emt 00:00:42] [%clk 00:03:14]} Kf4 {[%emt 00:00:05] [%clk
00:00:15]} 30. Re1 {[%emt 00:01:08] [%clk 00:02:16]} Raf8 {[%emt 00:00:15] [%clk
00:00:11]} 31. Qh6+ {[%emt 00:00:23] [%clk 00:02:03]} Ke5 {[%emt 00:00:09] [%clk
00:00:12]} 32. Bg3+ {[%emt 00:00:10] [%clk 00:02:02]} Kf6 {[%emt 00:00:12] [%clk
00:00:11]} 33. Qxf8+ {[%emt 00:00:48] [%clk 00:01:24]} Kxg6 {[%emt 00:00:05]
[%clk 00:00:16]} 34. Qg8+ {[%clk 00:01:33]} Kh6 {[%emt 00:00:08] [%clk
00:00:18]} 35. Re3 {[%emt 00:00:09] [%clk 00:01:33]} e5 {[%emt 00:00:17] [%clk
00:00:12]} 36. Bxe5 {[%emt 00:00:24] [%clk 00:01:19]} Rxe5 {[%emt 00:00:10]
[%clk 00:00:12]} 37. Rh3+ {[%emt 00:00:08] [%clk 00:01:20]} Rh5 {[%emt 00:00:01]
[%clk 00:00:21]} 38. Qh8+ {[%emt 00:00:05] [%clk 00:01:26]} 1-0

[Site "Europe Echecs"]